[Event "Early-Titled-Tuesday-Blitz-March-19-2024"]
[Site "Chess.com"]
[Date "2024.03.19"]
[Round "11"]
[White "ChristianArca"]
[Black "Chess_Gainz"]
[Result "0-1"]
[WhiteElo "2668"]
[BlackElo "2562"]
[TimeControl "180+1"]
[EndTime "10:06:32 PDT"]
[Termination "Chess_Gainz won by checkmate"]

1. Nf3 {[%clk 0:02:53.9]} 1... d6 {[%clk 0:03:00.1]} 2. d4 {[%clk 0:02:52.9]}
2... Nf6 {[%clk 0:03:00.4]} 3. c4 {[%clk 0:02:52.8]} 3... g6 {[%clk 0:03:00.7]}
4. Nc3 {[%clk 0:02:52.6]} 4... Bg7 {[%clk 0:03:01.2]} 5. h4 {[%clk 0:02:53.2]}
5... O-O {[%clk 0:02:57.5]} 6. e4 {[%clk 0:02:52.8]} 6... c5 {[%clk 0:02:52.2]}
7. d5 {[%clk 0:02:52.1]} 7... e6 {[%clk 0:02:51.8]} 8. h5 {[%clk 0:02:46.1]}
8... exd5 {[%clk 0:02:51.7]} 9. cxd5 {[%clk 0:02:44.2]} 9... Re8 {[%clk
0:02:43.9]} 10. Bd3 {[%clk 0:02:35.2]} 10... Nxh5 {[%clk 0:02:09.1]} 11. Be3
{[%clk 0:02:31.6]} 11... Nf6 {[%clk 0:02:00.8]} 12. Qd2 {[%clk 0:02:10]} 12...
Na6 {[%clk 0:01:29.8]} 13. a3 {[%clk 0:01:59.4]} 13... Ng4 {[%clk 0:01:04.4]}
14. Bg5 {[%clk 0:01:56.7]} 14... Qa5 {[%clk 0:00:56.3]} 15. Rc1 {[%clk
0:01:56.1]} 15... f5 {[%clk 0:00:46.9]} 16. Kf1 {[%clk 0:01:53.5]} 16... Bxc3
{[%clk 0:00:39.5]} 17. Qf4 {[%clk 0:00:57.1]} 17... Bg7 {[%clk 0:00:08.4]} 18.
exf5 {[%clk 0:00:57.1]} 18... Bxf5 {[%clk 0:00:02.9]} 19. Bxf5 {[%clk 0:00:58]}
19... gxf5 {[%clk 0:00:03.8]} 20. Qxf5 {[%clk 0:00:58.5]} 20... h6 {[%clk
0:00:01.4]} 21. Bf4 {[%clk 0:00:41.9]} 21... Qc7 {[%clk 0:00:01.3]} 22. Qxg4
{[%clk 0:00:41.8]} 22... Qf7 {[%clk 0:00:01.9]} 23. Bxh6 {[%clk 0:00:41.4]}
23... Re7 {[%clk 0:00:02.8]} 24. Bg5 {[%clk 0:00:33.8]} 24... Qg6 {[%clk
0:00:02.1]} 25. Nh4 {[%clk 0:00:30.1]} 25... Re4 {[%clk 0:00:02.3]} 26. Qf3
{[%clk 0:00:22.9]} 26... Qh7 {[%clk 0:00:02.8]} 27. g3 {[%clk 0:00:20.6]} 27...
Rf8 {[%clk 0:00:03.3]} 28. Bf4 {[%clk 0:00:21]} 28... Nc7 {[%clk 0:00:02.4]} 29.
Kg1 {[%clk 0:00:20.1]} 29... Re7 {[%clk 0:00:02]} 30. Ng2 {[%clk 0:00:20.2]}
30... Qf5 {[%clk 0:00:01.8]} 31. Rh5 {[%clk 0:00:19.7]} 31... Qf7 {[%clk
0:00:01.8]} 32. Qg4 {[%clk 0:00:19.3]} 32... Nxd5 {[%clk 0:00:02]} 33. Bxd6
{[%clk 0:00:19.2]} 33... Nf6 {[%clk 0:00:02.3]} 34. Qg5 {[%clk 0:00:12.4]} 34...
Qxh5 {[%clk 0:00:01.9]} 35. Bxe7 {[%clk 0:00:12.9]} 35... Qxg5 {[%clk
0:00:01.9]} 36. Bxf8 {[%clk 0:00:13.8]} 36... Qxc1+ {[%clk 0:00:02.1]} 37. Kh2
{[%clk 0:00:14.1]} 37... Qh6+ {[%clk 0:00:02.8]} 38. Kg1 {[%clk 0:00:14.5]}
38... Qc1+ {[%clk 0:00:03]} 39. Kh2 {[%clk 0:00:14.7]} 39... Ng4+ {[%clk
0:00:03.9]} 40. Kh3 {[%clk 0:00:14.8]} 40... Nxf2+ {[%clk 0:00:03.7]} 41. Kh4
{[%clk 0:00:15.2]} 41... Qh6# {[%clk 0:00:04.2]} 0-1

[Event "Early-Titled-Tuesday-Blitz-March-19-2024"]
[Site "Chess.com"]
[Date "2024.03.19"]
[Round "11"]
[White "NovozhilovSemen"]
[Black "Byniolus"]
[Result "0-1"]
[WhiteElo "2638"]
[BlackElo "2790"]
[TimeControl "180+1"]
[EndTime "10:06:33 PDT"]
[Termination "Byniolus won by resignation"]

1. d4 {[%clk 0:03:00.9]} 1... d6 {[%clk 0:02:59.5]} 2. e4 {[%clk 0:03:00.9]}
2... Nf6 {[%clk 0:02:59.7]} 3. Nc3 {[%clk 0:03:00.6]} 3... c6 {[%clk 0:03:00.2]}
4. Nf3 {[%clk 0:03:00.4]} 4... Bg4 {[%clk 0:03:00.2]} 5. Be2 {[%clk 0:02:59.7]}
5... e6 {[%clk 0:03:00.2]} 6. O-O {[%clk 0:02:59.8]} 6... Be7 {[%clk 0:03:00.8]}
7. Bf4 {[%clk 0:02:56]} 7... d5 {[%clk 0:03:00.8]} 8. exd5 {[%clk 0:02:51.4]}
8... exd5 {[%clk 0:03:00]} 9. Ne5 {[%clk 0:02:51]} 9... Bxe2 {[%clk 0:02:59.5]}
10. Qxe2 {[%clk 0:02:51]} 10... O-O {[%clk 0:03:00.4]} 11. Rae1 {[%clk
0:02:50.9]} 11... Re8 {[%clk 0:03:01]} 12. Qf3 {[%clk 0:02:44.6]} 12... Nbd7
{[%clk 0:03:01.2]} 13. Nd3 {[%clk 0:02:39.2]} 13... Nf8 {[%clk 0:02:58.1]} 14.
Ne2 {[%clk 0:02:23.5]} 14... Ne6 {[%clk 0:02:53.5]} 15. Be3 {[%clk 0:02:23.5]}
15... Bd6 {[%clk 0:02:19.8]} 16. Ng3 {[%clk 0:02:21.1]} 16... g6 {[%clk
0:02:20.1]} 17. c3 {[%clk 0:02:20.5]} 17... Kg7 {[%clk 0:02:13.5]} 18. h4 {[%clk
0:02:20.5]} 18... h5 {[%clk 0:02:06.9]} 19. Ne5 {[%clk 0:02:19.6]} 19... Bxe5
{[%clk 0:01:59.1]} 20. dxe5 {[%clk 0:02:19.1]} 20... Ng4 {[%clk 0:02:00]} 21.
Rd1 {[%clk 0:02:00.6]} 21... Qxh4 {[%clk 0:01:56]} 22. Rfe1 {[%clk 0:02:00.6]}
22... Nxe5 {[%clk 0:01:48.2]} 23. Qe2 {[%clk 0:01:59.5]} 23... Ng4 {[%clk
0:01:44.2]} 24. Qd2 {[%clk 0:01:56.4]} 24... Nxe3 {[%clk 0:01:34.9]} 25. Rxe3
{[%clk 0:01:55.7]} 25... Nc7 {[%clk 0:01:06.1]} 26. Rf3 {[%clk 0:01:54]} 26...
Ne6 {[%clk 0:00:45.1]} 27. b3 {[%clk 0:01:39.4]} 27... Re7 {[%clk 0:00:41.9]}
28. Re1 {[%clk 0:01:36.8]} 28... Rae8 {[%clk 0:00:41.4]} 29. Rfe3 {[%clk
0:01:33.5]} 29... Qf6 {[%clk 0:00:34]} 30. c4 {[%clk 0:01:29.2]} 30... dxc4
{[%clk 0:00:29.3]} 31. bxc4 {[%clk 0:01:30.1]} 31... Nc5 {[%clk 0:00:25.7]} 32.
Rxe7 {[%clk 0:01:07.1]} 32... Rxe7 {[%clk 0:00:26.6]} 33. Rb1 {[%clk 0:01:07.7]}
33... h4 {[%clk 0:00:24.6]} 34. Nf1 {[%clk 0:01:07]} 34... Ne4 {[%clk
0:00:23.4]} 35. Qc2 {[%clk 0:01:06.9]} 35... h3 {[%clk 0:00:21.1]} 36. Ne3
{[%clk 0:01:03.1]} 36... hxg2 {[%clk 0:00:20.1]} 37. Re1 {[%clk 0:00:53]} 37...
Ng5 {[%clk 0:00:19.6]} 38. Kxg2 {[%clk 0:00:47]} 38... Qf3+ {[%clk 0:00:18.9]}
39. Kf1 {[%clk 0:00:47.6]} 39... Qh1+ {[%clk 0:00:16.5]} 40. Ke2 {[%clk
0:00:47.5]} 40... Qh5+ {[%clk 0:00:17.4]} 41. Kf1 {[%clk 0:00:44.4]} 41... Rd7
{[%clk 0:00:12.4]} 42. Qc3+ {[%clk 0:00:43.6]} 42... Kh7 {[%clk 0:00:12.6]} 43.
Rc1 {[%clk 0:00:36.8]} 43... Ne4 {[%clk 0:00:11.1]} 44. Qc2 {[%clk 0:00:32.7]}
44... Nd2+ {[%clk 0:00:08.3]} 45. Ke1 {[%clk 0:00:32.9]} 45... Nf3+ {[%clk
0:00:08.8]} 46. Kf1 {[%clk 0:00:32]} 46... Qh1+ {[%clk 0:00:09]} 47. Ke2 {[%clk
0:00:30.4]} 47... Nd4+ {[%clk 0:00:08.3]} 0-1

[Event "Early-Titled-Tuesday-Blitz-March-19-2024"]
[Site "Chess.com"]
[Date "2024.03.19"]
[Round "11"]
[White "Felix-Rose"]
[Black "KetiTsatsalashvili"]
[Result "1-0"]
[WhiteElo "2290"]
[BlackElo "2464"]
[TimeControl "180+1"]
[EndTime "10:06:33 PDT"]
[Termination "Felix-Rose won by checkmate"]

1. e4 {[%clk 0:02:59.9]} 1... c5 {[%clk 0:02:59.7]} 2. Nf3 {[%clk 0:03:00]} 2...
d6 {[%clk 0:03:00.2]} 3. d4 {[%clk 0:03:00.3]} 3... cxd4 {[%clk 0:03:01.1]} 4.
Nxd4 {[%clk 0:03:01.2]} 4... Nf6 {[%clk 0:03:01.1]} 5. Nc3 {[%clk 0:03:01.6]}
5... Nc6 {[%clk 0:03:01.3]} 6. Bg5 {[%clk 0:03:01.3]} 6... e6 {[%clk 0:03:00.4]}
7. Qd2 {[%clk 0:03:01.5]} 7... a6 {[%clk 0:03:00.8]} 8. O-O-O {[%clk 0:03:01.3]}
8... Be7 {[%clk 0:03:00.3]} 9. Kb1 {[%clk 0:02:59.9]} 9... Qc7 {[%clk
0:03:00.4]} 10. h4 {[%clk 0:02:55.8]} 10... b5 {[%clk 0:02:50.6]} 11. Nxc6
{[%clk 0:02:54.5]} 11... Qxc6 {[%clk 0:02:50.5]} 12. f3 {[%clk 0:02:54.9]} 12...
Bb7 {[%clk 0:02:43.1]} 13. Ne2 {[%clk 0:02:54.9]} 13... d5 {[%clk 0:02:30]} 14.
e5 {[%clk 0:02:51.7]} 14... Ng8 {[%clk 0:02:27.1]} 15. Be3 {[%clk 0:02:47.4]}
15... Bc5 {[%clk 0:02:24.4]} 16. Nd4 {[%clk 0:02:46.9]} 16... Bxd4 {[%clk
0:02:22.5]} 17. Bxd4 {[%clk 0:02:47.2]} 17... Ne7 {[%clk 0:02:23.2]} 18. h5
{[%clk 0:02:44.4]} 18... Nf5 {[%clk 0:02:20.5]} 19. g4 {[%clk 0:02:39.4]} 19...
Ng3 {[%clk 0:02:15.5]} 20. Rg1 {[%clk 0:02:34.4]} 20... Nxf1 {[%clk 0:02:15.8]}
21. Rdxf1 {[%clk 0:02:29.3]} 21... O-O-O {[%clk 0:02:08.8]} 22. f4 {[%clk
0:02:27]} 22... g6 {[%clk 0:01:57.6]} 23. h6 {[%clk 0:02:21.7]} 23... Qd7 {[%clk
0:01:48]} 24. f5 {[%clk 0:02:17.4]} 24... gxf5 {[%clk 0:01:31]} 25. gxf5 {[%clk
0:02:16]} 25... Rhg8 {[%clk 0:01:28]} 26. Rg7 {[%clk 0:01:12.8]} 26... exf5
{[%clk 0:01:24.1]} 27. Qg5 {[%clk 0:00:42.6]} 27... Rge8 {[%clk 0:01:12.4]} 28.
Rxf5 {[%clk 0:00:38.5]} 28... Rf8 {[%clk 0:00:55.8]} 29. Rxh7 {[%clk 0:00:29.8]}
29... Qc6 {[%clk 0:00:37.4]} 30. Rhxf7 {[%clk 0:00:21.5]} 30... Rxf7 {[%clk
0:00:34.6]} 31. Rxf7 {[%clk 0:00:22.2]} 31... Qc4 {[%clk 0:00:32.2]} 32. Qf5+
{[%clk 0:00:20.6]} 32... Kb8 {[%clk 0:00:31.2]} 33. c3 {[%clk 0:00:20.6]} 33...
Qe2 {[%clk 0:00:27.9]} 34. a3 {[%clk 0:00:19]} 34... Bc8 {[%clk 0:00:23.4]} 35.
Qf6 {[%clk 0:00:15.6]} 35... Qd3+ {[%clk 0:00:17.7]} 36. Kc1 {[%clk 0:00:15.7]}
36... Bb7 {[%clk 0:00:09.8]} 37. Qxd8+ {[%clk 0:00:13.4]} 37... Bc8 {[%clk
0:00:08.1]} 38. Qc7+ {[%clk 0:00:12.4]} 38... Ka8 {[%clk 0:00:03.5]} 39. Qxc8#
{[%clk 0:00:12.4]} 1-0

[Event "Early-Titled-Tuesday-Blitz-March-19-2024"]
[Site "Chess.com"]
[Date "2024.03.19"]
[Round "11"]
[White "TigrVShlyape"]
[Black "Anton_Demchenko"]
[Result "1-0"]
[WhiteElo "2934"]
[BlackElo "3014"]
[TimeControl "180+1"]
[EndTime "10:06:34 PDT"]
[Termination "TigrVShlyape won on time"]

1. d4 {[%clk 0:03:00.9]} 1... Nf6 {[%clk 0:03:00.6]} 2. Bf4 {[%clk 0:02:58.7]}
2... g6 {[%clk 0:03:00.1]} 3. c3 {[%clk 0:02:51.1]} 3... Bg7 {[%clk 0:03:00.8]}
4. Nf3 {[%clk 0:02:50.4]} 4... d6 {[%clk 0:02:57.7]} 5. h3 {[%clk 0:02:50.4]}
5... O-O {[%clk 0:02:51.2]} 6. Nbd2 {[%clk 0:02:50.2]} 6... Nbd7 {[%clk
0:02:39.4]} 7. e4 {[%clk 0:02:49.6]} 7... e5 {[%clk 0:02:32.4]} 8. dxe5 {[%clk
0:02:47.9]} 8... dxe5 {[%clk 0:02:32.3]} 9. Bg5 {[%clk 0:02:41.8]} 9... h6
{[%clk 0:02:31]} 10. Bh4 {[%clk 0:02:40.4]} 10... b6 {[%clk 0:02:30.9]} 11. Bb5
{[%clk 0:02:00.2]} 11... Bb7 {[%clk 0:02:23.2]} 12. O-O {[%clk 0:01:59.4]} 12...
g5 {[%clk 0:02:08.3]} 13. Bg3 {[%clk 0:01:58.1]} 13... Qe7 {[%clk 0:02:08.6]}
14. Re1 {[%clk 0:01:51.9]} 14... a6 {[%clk 0:01:50.6]} 15. Bf1 {[%clk
0:01:45.4]} 15... Nh5 {[%clk 0:01:40.7]} 16. Bh2 {[%clk 0:01:43.8]} 16... Nf4
{[%clk 0:01:36.7]} 17. Nc4 {[%clk 0:01:37.7]} 17... Rad8 {[%clk 0:00:51.5]} 18.
Qc2 {[%clk 0:01:35.3]} 18... Nc5 {[%clk 0:00:52.2]} 19. Bxf4 {[%clk 0:01:17.5]}
19... exf4 {[%clk 0:00:51.7]} 20. e5 {[%clk 0:01:01.8]} 20... Bxf3 {[%clk
0:00:42.6]} 21. gxf3 {[%clk 0:01:01.3]} 21... b5 {[%clk 0:00:42.6]} 22. Na5
{[%clk 0:01:00.4]} 22... Qe6 {[%clk 0:00:43.3]} 23. Nb3 {[%clk 0:00:28.9]} 23...
Nd7 {[%clk 0:00:21.1]} 24. Nd4 {[%clk 0:00:28.1]} 24... Qd5 {[%clk 0:00:21.7]}
25. e6 {[%clk 0:00:24]} 25... fxe6 {[%clk 0:00:22]} 26. Nxe6 {[%clk 0:00:23.9]}
26... Ne5 {[%clk 0:00:22.3]} 27. Rxe5 {[%clk 0:00:23.8]} 27... Qxe5 {[%clk
0:00:20.3]} 28. Nxd8 {[%clk 0:00:21.8]} 28... Rxd8 {[%clk 0:00:20.2]} 29. a4
{[%clk 0:00:21]} 29... c6 {[%clk 0:00:13.2]} 30. axb5 {[%clk 0:00:20.7]} 30...
axb5 {[%clk 0:00:14.1]} 31. Kg2 {[%clk 0:00:20.5]} 31... Qd5 {[%clk 0:00:09.2]}
32. Re1 {[%clk 0:00:18]} 32... Qf7 {[%clk 0:00:05.8]} 33. Bd3 {[%clk 0:00:16.9]}
33... Rd6 {[%clk 0:00:04]} 34. Bf5 {[%clk 0:00:16.4]} 34... Qf6 {[%clk
0:00:02.6]} 35. Re8+ {[%clk 0:00:15.4]} 35... Kf7 {[%clk 0:00:02.8]} 36. Rc8
{[%clk 0:00:15.3]} 36... Rd5 {[%clk 0:00:02.8]} 37. Be4 {[%clk 0:00:14.8]} 37...
Rd6 {[%clk 0:00:02.8]} 38. Rc7+ {[%clk 0:00:14.5]} 38... Kf8 {[%clk 0:00:02.8]}
39. Qb3 {[%clk 0:00:14.3]} 39... Qe6 {[%clk 0:00:03.2]} 40. Qb4 {[%clk
0:00:14.7]} 40... Be5 {[%clk 0:00:02.4]} 41. Qc5 {[%clk 0:00:13.9]} 41... Kg8
{[%clk 0:00:02]} 42. Rxc6 {[%clk 0:00:13.7]} 42... Rxc6 {[%clk 0:00:01.4]} 43.
Bxc6 {[%clk 0:00:14]} 1-0

[Event "Early-Titled-Tuesday-Blitz-March-19-2024"]
[Site "Chess.com"]
[Date "2024.03.19"]
[Round "11"]
[White "Barbix1"]
[Black "Jojo_898"]
[Result "1-0"]
[WhiteElo "2304"]
[BlackElo "2472"]
[TimeControl "180+1"]
[EndTime "10:06:41 PDT"]
[Termination "Barbix1 won by resignation"]

1. d4 {[%clk 0:02:54.3]} 1... d6 {[%clk 0:02:59.6]} 2. Nf3 {[%clk 0:02:52.2]}
2... Nf6 {[%clk 0:03:00.1]} 3. Bf4 {[%clk 0:02:39.7]} 3... Nbd7 {[%clk
0:02:56.7]} 4. e3 {[%clk 0:02:38.9]} 4... c5 {[%clk 0:02:55.5]} 5. c3 {[%clk
0:02:37.9]} 5... Qb6 {[%clk 0:02:48.5]} 6. Qb3 {[%clk 0:02:32.8]} 6... e6 {[%clk
0:02:39.1]} 7. Nbd2 {[%clk 0:02:26.8]} 7... Be7 {[%clk 0:02:39.1]} 8. h3 {[%clk
0:02:25.1]} 8... O-O {[%clk 0:02:36.8]} 9. Be2 {[%clk 0:02:25.2]} 9... Qc6
{[%clk 0:02:18.1]} 10. O-O {[%clk 0:02:17.3]} 10... a6 {[%clk 0:02:17.8]} 11. a4
{[%clk 0:02:16.9]} 11... b6 {[%clk 0:02:15.9]} 12. Bh2 {[%clk 0:02:14.6]} 12...
Bb7 {[%clk 0:02:16]} 13. Rfd1 {[%clk 0:02:02.3]} 13... Rfd8 {[%clk 0:02:07]} 14.
Bf1 {[%clk 0:01:57.8]} 14... Nf8 {[%clk 0:02:05.3]} 15. Nc4 {[%clk 0:01:47.6]}
15... b5 {[%clk 0:01:54.2]} 16. Na5 {[%clk 0:01:46]} 16... Qb6 {[%clk
0:01:44.6]} 17. Nxb7 {[%clk 0:01:42.4]} 17... Qxb7 {[%clk 0:01:44.2]} 18. axb5
{[%clk 0:01:40.7]} 18... axb5 {[%clk 0:01:44]} 19. Qxb5 {[%clk 0:01:39.2]} 19...
Qxb5 {[%clk 0:01:34]} 20. Bxb5 {[%clk 0:01:40.1]} 20... Rab8 {[%clk 0:01:34.4]}
21. c4 {[%clk 0:01:37.4]} 21... Ne4 {[%clk 0:01:31.2]} 22. Nd2 {[%clk
0:01:28.6]} 22... Nxd2 {[%clk 0:01:22.8]} 23. Rxd2 {[%clk 0:01:29.5]} 23... Bf6
{[%clk 0:01:23.3]} 24. Rad1 {[%clk 0:01:10.5]} 24... cxd4 {[%clk 0:01:20.9]} 25.
exd4 {[%clk 0:01:09.6]} 25... Ra8 {[%clk 0:01:19.1]} 26. b4 {[%clk 0:01:03.2]}
26... Ng6 {[%clk 0:01:06.8]} 27. Rb1 {[%clk 0:00:55]} 27... h6 {[%clk
0:00:46.6]} 28. Bg3 {[%clk 0:00:49.6]} 28... Ra3 {[%clk 0:00:43.3]} 29. f3
{[%clk 0:00:49.6]} 29... Bg5 {[%clk 0:00:37.1]} 30. Rc2 {[%clk 0:00:39.8]} 30...
Nf4 {[%clk 0:00:29.6]} 31. c5 {[%clk 0:00:27.2]} 31... dxc5 {[%clk 0:00:25.6]}
32. dxc5 {[%clk 0:00:26.9]} 32... Rb8 {[%clk 0:00:18.5]} 33. c6 {[%clk
0:00:25.4]} 33... Rc8 {[%clk 0:00:17.2]} 34. Bf1 {[%clk 0:00:15]} 34... Nd5
{[%clk 0:00:13.7]} 35. b5 {[%clk 0:00:15.3]} 35... Ra5 {[%clk 0:00:13.4]} 36. b6
{[%clk 0:00:14.3]} 36... Be3+ {[%clk 0:00:13.2]} 37. Bf2 {[%clk 0:00:10.1]}
37... Bxf2+ {[%clk 0:00:06.9]} 38. Kxf2 {[%clk 0:00:11]} 38... Nxb6 {[%clk
0:00:05.9]} 39. Rxb6 {[%clk 0:00:11.9]} 39... Kf8 {[%clk 0:00:06.8]} 40. c7
{[%clk 0:00:11.5]} 40... Ke7 {[%clk 0:00:06.4]} 41. Rb8 {[%clk 0:00:10.6]} 1-0

[Event "Early-Titled-Tuesday-Blitz-March-19-2024"]
[Site "Chess.com"]
[Date "2024.03.19"]
[Round "11"]
[White "IMchanged"]
[Black "chess123456s"]
[Result "1-0"]
[WhiteElo "2669"]
[BlackElo "2545"]
[TimeControl "180+1"]
[EndTime "10:06:42 PDT"]
[Termination "IMchanged won on time"]

1. e4 {[%clk 0:02:45.7]} 1... c5 {[%clk 0:02:59.6]} 2. Nf3 {[%clk 0:02:44.8]}
2... d6 {[%clk 0:03:00.3]} 3. Bb5+ {[%clk 0:02:43.3]} 3... Nd7 {[%clk
0:02:58.2]} 4. Ba4 {[%clk 0:02:39.7]} 4... Nf6 {[%clk 0:02:57.1]} 5. O-O {[%clk
0:02:39.7]} 5... a6 {[%clk 0:02:57.1]} 6. c3 {[%clk 0:02:36.3]} 6... b5 {[%clk
0:02:56.6]} 7. Bc2 {[%clk 0:02:35.8]} 7... Bb7 {[%clk 0:02:57.1]} 8. Re1 {[%clk
0:02:35]} 8... e5 {[%clk 0:02:57.1]} 9. d4 {[%clk 0:02:32]} 9... Be7 {[%clk
0:02:57.6]} 10. d5 {[%clk 0:02:31.3]} 10... O-O {[%clk 0:02:57.9]} 11. Nbd2
{[%clk 0:02:31.4]} 11... c4 {[%clk 0:02:57.3]} 12. b4 {[%clk 0:02:29.3]} 12...
cxb3 {[%clk 0:02:55.5]} 13. axb3 {[%clk 0:02:29.3]} 13... Rc8 {[%clk 0:02:56]}
14. Bb2 {[%clk 0:02:28.8]} 14... Re8 {[%clk 0:02:54]} 15. Nf1 {[%clk 0:02:28.9]}
15... Bf8 {[%clk 0:02:51.4]} 16. Ng3 {[%clk 0:02:28.9]} 16... g6 {[%clk
0:02:51.6]} 17. Qd2 {[%clk 0:02:22.3]} 17... h5 {[%clk 0:02:51.1]} 18. h3 {[%clk
0:02:21.5]} 18... Nc5 {[%clk 0:02:46.5]} 19. c4 {[%clk 0:02:14.7]} 19... bxc4
{[%clk 0:02:43.7]} 20. bxc4 {[%clk 0:02:14.8]} 20... Ra8 {[%clk 0:02:41.3]} 21.
Bc3 {[%clk 0:02:14.4]} 21... Qd7 {[%clk 0:02:36.5]} 22. Reb1 {[%clk 0:02:09.5]}
22... Reb8 {[%clk 0:02:36.4]} 23. Nxe5 {[%clk 0:01:58.2]} 23... dxe5 {[%clk
0:02:31.7]} 24. Bxe5 {[%clk 0:01:58.7]} 24... h4 {[%clk 0:02:05.5]} 25. Qg5
{[%clk 0:01:39]} 25... Nh7 {[%clk 0:01:37.7]} 26. Qxh4 {[%clk 0:01:39]} 26...
Re8 {[%clk 0:01:38.2]} 27. Bd4 {[%clk 0:01:35.6]} 27... Be7 {[%clk 0:01:24.5]}
28. Qh6 {[%clk 0:01:27.6]} 28... Bf8 {[%clk 0:01:13.7]} 29. Qe3 {[%clk
0:01:25.9]} 29... Rac8 {[%clk 0:01:13.4]} 30. Qc3 {[%clk 0:01:18.5]} 30... Ng5
{[%clk 0:01:07.9]} 31. Re1 {[%clk 0:01:14.1]} 31... Qc7 {[%clk 0:00:40.1]} 32.
e5 {[%clk 0:01:09.3]} 32... Nd7 {[%clk 0:00:39.6]} 33. Bb3 {[%clk 0:01:00.6]}
33... Bc5 {[%clk 0:00:30.3]} 34. f4 {[%clk 0:00:56.6]} 34... Bxd4+ {[%clk
0:00:27.8]} 35. Qxd4 {[%clk 0:00:56.6]} 35... Nh7 {[%clk 0:00:28]} 36. Kh2
{[%clk 0:00:55.6]} 36... Qc5 {[%clk 0:00:24.5]} 37. Qd2 {[%clk 0:00:55.3]} 37...
Nb6 {[%clk 0:00:20.5]} 38. Rac1 {[%clk 0:00:51.8]} 38... Rcd8 {[%clk 0:00:20.3]}
39. f5 {[%clk 0:00:50.2]} 39... Qe7 {[%clk 0:00:14.7]} 40. fxg6 {[%clk
0:00:47.3]} 40... fxg6 {[%clk 0:00:15.6]} 41. d6 {[%clk 0:00:45.1]} 41... Qe6
{[%clk 0:00:14.1]} 42. Qe3 {[%clk 0:00:44.8]} 42... Nd7 {[%clk 0:00:12.6]} 43.
c5 {[%clk 0:00:44.1]} 43... Bd5 {[%clk 0:00:13.1]} 44. Bxd5 {[%clk 0:00:41.5]}
44... Qxd5 {[%clk 0:00:14]} 45. e6 {[%clk 0:00:41.9]} 45... Nxc5 {[%clk
0:00:12.6]} 46. Rxc5 {[%clk 0:00:40.1]} 46... Qxd6 {[%clk 0:00:12.7]} 47. Re5
{[%clk 0:00:38.5]} 47... Nf8 {[%clk 0:00:12.5]} 48. e7 {[%clk 0:00:38.4]} 48...
Rd7 {[%clk 0:00:08.4]} 49. exf8=Q+ {[%clk 0:00:38.4]} 49... Rxf8 {[%clk
0:00:09.3]} 50. Re6 {[%clk 0:00:38.9]} 50... Qd5 {[%clk 0:00:04.3]} 51. Rxg6+
{[%clk 0:00:38.8]} 51... Kf7 {[%clk 0:00:05.1]} 52. Qh6 {[%clk 0:00:37.3]} 52...
Qa2 {[%clk 0:00:03.8]} 53. Rf6+ {[%clk 0:00:36.7]} 1-0

[Event "Early-Titled-Tuesday-Blitz-March-19-2024"]
[Site "Chess.com"]
[Date "2024.03.19"]
[Round "11"]
[White "Shuvalov"]
[Black "GMKrikor"]
[Result "1-0"]
[WhiteElo "2595"]
[BlackElo "2858"]
[TimeControl "180+1"]
[EndTime "10:06:43 PDT"]
[Termination "Shuvalov won on time"]

1. d4 {[%clk 0:03:00.9]} 1... Nf6 {[%clk 0:03:00]} 2. c4 {[%clk 0:03:00.6]} 2...
g6 {[%clk 0:03:00.6]} 3. Nc3 {[%clk 0:03:00.3]} 3... d5 {[%clk 0:03:00.7]} 4.
cxd5 {[%clk 0:03:00.1]} 4... Nxd5 {[%clk 0:03:01.6]} 5. e4 {[%clk 0:03:00.6]}
5... Nxc3 {[%clk 0:03:02.2]} 6. bxc3 {[%clk 0:03:01.5]} 6... Bg7 {[%clk
0:03:02.6]} 7. Nf3 {[%clk 0:03:02.2]} 7... c5 {[%clk 0:03:03.2]} 8. Bb5+ {[%clk
0:03:02.8]} 8... Nd7 {[%clk 0:02:56.5]} 9. O-O {[%clk 0:02:59.1]} 9... O-O
{[%clk 0:02:56.3]} 10. Rb1 {[%clk 0:02:55.5]} 10... Qc7 {[%clk 0:02:55.7]} 11.
Be3 {[%clk 0:02:51.1]} 11... b6 {[%clk 0:02:53.6]} 12. Qd2 {[%clk 0:02:36.5]}
12... Nf6 {[%clk 0:02:49.7]} 13. Bd3 {[%clk 0:02:32.6]} 13... Bb7 {[%clk
0:02:44.3]} 14. d5 {[%clk 0:02:31.7]} 14... e6 {[%clk 0:02:36.5]} 15. c4 {[%clk
0:02:30.5]} 15... exd5 {[%clk 0:02:35.3]} 16. exd5 {[%clk 0:02:29.8]} 16... Rfe8
{[%clk 0:02:29.5]} 17. Bf4 {[%clk 0:02:26.9]} 17... Qd7 {[%clk 0:02:17.9]} 18.
Rfe1 {[%clk 0:02:25.7]} 18... Rxe1+ {[%clk 0:02:07.3]} 19. Rxe1 {[%clk
0:02:26.6]} 19... Re8 {[%clk 0:02:07.3]} 20. h3 {[%clk 0:02:19.8]} 20... Ba6
{[%clk 0:02:04.8]} 21. Ne5 {[%clk 0:02:11]} 21... Qa4 {[%clk 0:01:43.3]} 22. g4
{[%clk 0:01:37]} 22... Bb7 {[%clk 0:00:41]} 23. Re2 {[%clk 0:00:45.9]} 23... b5
{[%clk 0:00:34.7]} 24. d6 {[%clk 0:00:42.4]} 24... b4 {[%clk 0:00:32]} 25. Bc2
{[%clk 0:00:25.2]} 25... Qxa2 {[%clk 0:00:27.2]} 26. Bxg6 {[%clk 0:00:22.3]}
26... Qxd2 {[%clk 0:00:21.5]} 27. Bxf7+ {[%clk 0:00:22.5]} 27... Kf8 {[%clk
0:00:22.2]} 28. Rxd2 {[%clk 0:00:20.5]} 28... Ne4 {[%clk 0:00:17.7]} 29. Bxe8
{[%clk 0:00:19.3]} 29... Nxd2 {[%clk 0:00:16.5]} 30. d7 {[%clk 0:00:19.5]} 30...
Bf6 {[%clk 0:00:14.6]} 31. Bxd2 {[%clk 0:00:18.6]} 31... a5 {[%clk 0:00:14.6]}
32. Nd3 {[%clk 0:00:16.4]} 32... b3 {[%clk 0:00:09.3]} 33. Bxa5 {[%clk
0:00:11.7]} 33... Be4 {[%clk 0:00:09.7]} 34. Nb2 {[%clk 0:00:11]} 34... h5
{[%clk 0:00:04.5]} 35. gxh5 {[%clk 0:00:10.9]} 35... Bf3 {[%clk 0:00:04.2]} 36.
h6 {[%clk 0:00:10.6]} 36... Be4 {[%clk 0:00:04.8]} 37. Kf1 {[%clk 0:00:09.6]}
37... Bc2 {[%clk 0:00:02.2]} 38. Ke2 {[%clk 0:00:09.6]} 38... Bf5 {[%clk
0:00:01.9]} 39. Kd2 {[%clk 0:00:07.9]} 39... Be4 {[%clk 0:00:01.9]} 40. Bc3
{[%clk 0:00:07.6]} 40... Bg5+ {[%clk 0:00:01.9]} 41. Ke2 {[%clk 0:00:07.5]}
41... Ke7 {[%clk 0:00:02.2]} 42. Na4 {[%clk 0:00:05.4]} 42... Bxh6 {[%clk
0:00:01.6]} 43. Ba5 {[%clk 0:00:04.7]} 1-0